bitfinex/quotes_ETHUSD_20250210
["timestamp","ask_amount","ask_price","bid_price","bid_amount"]
[1739156864239,3.84955,2597.8,2597.7,2.22067653]
[1739156864755,0.03833572,2597.8,2597.7,2.22067653]
[1739156865318,3.88774572,2597.8,2597.7,2.22067653]
[1739156868362,0.03833572,2597.8,2597.7,2.22067653]
[1739156868661,3.88774572,2597.8,2597.7,2.22067653]
[1739156869050,0.03833572,2597.8,2597.7,2.22067653]
[1739156869360,0.03833572,2597.8,2597.7,2.44274418]
[1739156869567,3.84907,2598.1,2597.7,2.44274418]
[1739156869769,0.03833572,2598.0,2597.7,2.44274418]
[1739156870169,3.84893,2598.2,2597.7,6.29225418]
[1739156870337,3.84893,2598.2,2598.1,2.22067653]
[1739156870934,3.84859,2598.4,2598.1,2.22067653]
[1739156871134,3.84853,2598.4,2598.2,1.03456765]
[1739156871340,3.84881,2598.2,2598.1,2.22067653]
[1739156872545,3.84852,2598.4,2598.1,2.22067653]
[1739156874938,3.84881,2598.2,2598.1,2.22067653]
[1739156875536,3.84852,2598.4,2598.1,2.22067653]
[1739156875867,7.69714,2598.4,2598.1,2.22067653]
[1739156876075,3.84852,2598.4,2598.1,2.22067653]
[1739156876290,3.84879,2598.3,2598.1,2.22067653]
[1739156876442,3.84852,2598.4,2598.1,2.22067653]
[1739156876644,3.84881,2598.2,2598.1,2.22067653]
[1739156876975,3.84852,2598.4,2598.1,2.22067653]
[1739156877358,3.84852,2598.4,2598.1,2.44274418]
[1739156877560,4.61878963,2598.5,2598.1,2.44274418]
[1739156878336,3.84852,2598.4,2598.1,2.22067653]
[1739156878560,3.84876,2598.3,2598.1,2.22067653]
[1739156878761,3.88778826,2598.2,2598.1,2.22067653]
[1739156879161,0.03897826,2598.2,2598.1,2.06099653]
[1739156879372,3.84876,2598.3,2598.1,2.06099653]
[1739156879676,3.88778826,2598.2,2598.1,2.06099653]
[1739156880057,0.03897826,2598.2,2598.1,2.06099653]
[1739156880378,3.84876,2598.3,2598.1,2.06099653]
[1739156880573,3.84926,2597.9,2597.8,2.22067653]
[1739156880946,0.03948189,2597.9,2597.8,2.22067653]
[1739156881346,3.8486,2598.4,2597.8,6.29215418]
[1739156881583,0.03940375,2598.3,2598.1,2.22067653]
[1739156882666,3.84881,2598.2,2598.1,2.22067653]
[1739156883084,3.84867,2598.3,2598.1,2.22067653]
[1739156883260,0.03940375,2598.2,2598.1,2.22067653]
[1739156883581,3.84881,2598.2,2598.1,2.22067653]
[1739156883786,0.03940375,2598.2,2598.1,2.22067653]
[1739156883983,3.84852,2598.4,2598.1,2.22067653]
[1739156884164,3.84881,2598.2,2598.1,2.22067653]
[1739156884478,3.84876,2598.3,2598.1,2.22067653]
[1739156884683,0.03940375,2598.2,2598.1,2.22067653]
[1739156885082,3.84853,2598.4,2598.1,2.22067653]
[1739156885083,0.77030963,2598.5,2598.1,2.22067653]
[1739156885252,0.03940375,2598.2,2598.1,2.22067653]
[1739156885809,0.77030963,2598.5,2598.3,3.84866]
[1739156886106,3.84763,2599.0,2598.4,6.45404253]
[1739156886310,3.84778,2598.9,2598.7,2.22067653]
[1739156886451,3.84763,2599.0,2598.7,2.22067653]
[1739156887072,3.84742,2599.2,2598.7,2.22067653]
[1739156887073,0.7765531,2599.1,2598.7,2.22067653]
[1739156887298,4.6240331,2599.1,2599.0,2.22067653]
[1739156887500,0.7765531,2599.1,2599.0,2.22067653]
[1739156888010,3.84705,2599.4,2599.0,2.22067653]
[1739156888906,0.78410667,2599.3,2599.0,2.22067653]
[1739156889919,3.84743,2599.2,2599.0,2.22067653]
[1739156890283,3.84691,2599.5,2599.0,2.22067653]
[1739156890599,0.77362416,2599.5,2599.3,6.06782653]
[1739156890923,3.8467,2599.7,2599.3,2.22067653]
[1739156891101,3.84704,2599.4,2599.3,2.22067653]
[1739156891894,3.84689,2599.5,2599.3,2.22067653]
[1739156892102,0.75258208,2599.7,2599.3,2.22067653]
[1739156892671,4.59928208,2599.7,2599.3,2.22067653]
[1739156893166,3.84678,2599.6,2599.3,2.22067653]
[1739156893906,0.04102645,2599.5,2599.4,0.7773]
[1739156894208,4.64691,2600.3,2599.6,3.84661]
[1739156894392,3.84571,2600.3,2600.1,2.22067653]
[1739156894574,0.04103513,2600.2,2600.1,2.22067653]
[1739156894774,3.84571,2600.3,2600.1,2.22067653]
[1739156894975,3.88688513,2600.2,2600.1,2.22067653]
[1739156895500,3.84634,2599.9,2599.8,2.22067653]
[1739156895906,0.04146,2599.9,2599.8,2.22067653]
[1739156896279,0.8012,2600.4,2599.8,2.22067653]
[1739156896617,4.64643,2600.7,2600.3,2.22067653]
[1739156896783,3.84556,2600.4,2600.3,2.22067653]
[1739156897190,3.84546,2600.5,2600.3,2.22067653]
[1739156897576,3.84556,2600.4,2600.3,2.22067653]
[1739156898386,3.84546,2600.5,2600.3,2.22067653]
[1739156898579,4.64633,2600.7,2600.3,2.22067653]
[1739156899013,3.84541,2600.5,2600.3,2.22067653]
[1739156899180,3.84556,2600.4,2600.3,2.22067653]
[1739156899529,0.78042918,2600.5,2600.3,2.22067653]
[1739156899697,4.62593918,2600.5,2600.3,2.22067653]
[1739156900525,0.8012,2600.7,2600.3,2.22067653]
[1739156900827,3.84556,2600.4,2600.3,2.22067653]
[1739156901323,3.84551,2600.5,2600.3,2.22067653]
[1739156901626,5.42673376,2600.7,2600.3,2.22067653]
[1739156901913,0.78038376,2600.7,2600.6,2.22067653]
[1739156902271,0.1,2602.4,2600.6,2.22067653]
[1739156902485,3.84467,2601.0,2600.9,2.22067653]
[1739156902699,3.84444,2601.2,2600.9,2.22067653]
[1739156902890,0.75697609,2601.1,2600.9,2.22067653]
[1739156903214,0.8012,2601.5,2601.0,0.7773]
[1739156903511,0.75959405,2601.5,2601.3,2.22067653]
[1739156903808,3.84373,2601.7,2601.4,1.73001796]
[1739156903973,3.84327,2602.0,2601.4,1.73001796]
[1739156904174,0.8012,2602.1,2601.7,1.73001796]
[1739156904374,4.64424,2602.1,2602.0,1.73001796]
[1739156904628,3.84349,2601.8,2601.7,1.73001796]
[1739156905825,3.84393,2601.5,2601.4,2.21525703]
[1739156906683,3.84393,2601.5,2601.1,2.21525703]
[1739156906888,3.84437,2601.2,2601.1,2.21525703]
[1739156907097,3.84422,2601.4,2601.1,2.21525703]
[1739156907377,3.84397,2601.5,2601.1,2.21525703]
[1739156907598,3.84397,2601.5,2601.4,2.21525703]
[1739156908813,3.88900073,2601.5,2601.4,2.21525703]
[1739156909017,4.6395684,2601.5,2601.4,2.21525703]
[1739156909413,3.88900073,2601.5,2601.4,2.21525703]
[1739156909618,3.88896073,2601.5,2601.4,2.21525703]
[1739156909816,0.04503073,2601.5,2601.4,2.21525703]
[1739156910114,0.04503073,2601.5,2601.4,2.43678273]
[1739156910310,3.84367,2601.7,2601.4,2.43678273]
[1739156910476,3.84367,2601.7,2601.6,2.21525703]
[1739156910677,3.84354,2601.8,2601.6,2.21525703]
[1739156910887,4.62280269,2601.9,2601.6,2.21525703]
[1739156911312,3.84364,2601.7,2601.6,2.21525703]
[1739156911878,3.8436,2601.8,2601.6,2.21525703]
[1739156912081,7.6872,2601.8,2601.6,2.21525703]
[1739156912290,3.8436,2601.8,2601.6,2.21525703]
[1739156912499,3.84364,2601.7,2601.6,2.21525703]
[1739156914481,3.84408,2601.4,2601.3,2.21525703]
[1739156915500,3.84447,2601.2,2601.0,2.21525703]
[1739156915699,3.84452,2601.1,2601.0,2.21525703]
[1739156915896,3.84447,2601.2,2601.0,2.21525703]
[1739156916216,3.84452,2601.1,2601.0,2.21525703]
[1739156916382,3.84447,2601.2,2601.0,2.21525703]
[1739156916687,3.84452,2601.1,2601.0,2.21525703]
[1739156917106,3.84447,2601.2,2600.7,2.21525703]
[1739156917306,3.84497,2600.8,2600.7,2.21525703]
[1739156919224,3.84497,2600.8,2600.1,2.21525703]
[1739156919225,0.7829,2600.7,2600.1,2.21525703]
[1739156919396,3.84585,2600.2,2600.1,2.21525703]
[1739156919601,4.62875,2600.2,2600.1,2.21525703]
[1739156919806,4.62875,2600.2,2599.5,6.5]
[1739156920008,3.8463,2599.9,2599.8,2.21525703]
[1739156922290,0.78123253,2600.0,2599.8,2.21525703]
[1739156922745,3.84613,2600.1,2599.8,2.43678273]
[1739156922895,3.84575,2600.3,2599.8,2.43678273]
[1739156923225,3.84547,2600.5,2600.2,2.21525703]
[1739156923522,0.7829,2600.9,2600.3,0.7586]
[1739156923523,3.84497,2600.8,2600.3,0.7586]
[1739156923693,3.8449,2600.9,2600.6,2.21525703]
[1739156923694,3.84513,2600.7,2600.6,2.21525703]
[1739156923896,3.88702386,2600.7,2600.6,2.21525703]
[1739156925225,4.67472687,2600.7,2600.6,2.21525703]
[1739156925426,3.84556,2600.4,2600.3,2.21525703]
[1739156925729,3.846,2600.1,2600.0,2.21525703]
[1739156926092,3.88789386,2600.1,2600.0,2.21525703]
[1739156926288,4.67079386,2600.1,2600.0,2.21525703]
[1739156926495,3.88789386,2600.1,2600.0,2.21525703]
[1739156927508,4.67079386,2600.1,2600.0,2.21525703]
[1739156928531,0.04189386,2600.1,2600.0,2.21525703]
[1739156928829,3.88789386,2600.1,2600.0,2.21525703]
[1739156931394,4.64233912,2600.1,2600.0,2.21525703]
[1739156932433,0.79633912,2600.1,2600.0,2.21525703]
[1739156932797,0.04189386,2600.1,2600.0,2.43678273]
[1739156932993,3.84535,2600.6,2600.0,2.43678273]
[1739156933224,0.04211933,2600.5,2600.4,2.21525703]
[1739156933627,0.04211933,2600.5,2600.4,2.96775703]
[1739156933829,3.84506,2600.8,2600.4,2.96775703]
[1739156934032,3.84506,2600.8,2600.7,2.21525703]
[1739156934414,3.84541,2600.5,2600.4,2.21525703]
[1739156936247,3.84527,2600.6,2600.4,2.21525703]
[1739156936604,4.61810115,2600.8,2600.4,2.21525703]
[1739156936806,4.61810115,2600.8,2600.7,2.21525703]
[1739156937043,3.84502,2600.8,2600.7,2.21525703]
[1739156937549,3.83925088,2600.8,2600.7,2.21525703]
[1739156937726,3.83925088,2600.8,2600.7,2.96775703]
[1739156938245,3.83925088,2600.8,2600.7,2.21525703]
[1739156938916,3.83925088,2600.8,2600.4,0.7525]
[1739156938917,3.84541,2600.5,2600.4,2.21525703]
[1739156939444,3.88828342,2600.5,2600.4,2.21525703]
[1739156940244,0.04287342,2600.5,2600.4,2.21525703]
[1739156940614,3.84514,2600.7,2600.4,2.21525703]
[1739156940949,0.04274344,2600.6,2600.4,2.21525703]
[1739156941447,0.76799863,2600.9,2600.5,0.813]
[1739156941613,4.61284863,2600.9,2600.8,2.21525703]
[1739156942012,0.7745443,2601.4,2600.9,0.813]
[1739156942216,3.8438,2601.6,2601.2,2.21525703]
[1739156942626,3.0,2601.7,2601.2,2.21525703]
[1739156943118,3.84423,2601.3,2601.2,2.21525703]
[1739156945639,0.7736202,2601.5,2601.2,2.21525703]
[1739156945840,3.84413,2601.4,2601.2,2.21525703]
[1739156946241,0.7736202,2601.5,2601.2,2.21525703]
[1739156946536,3.84423,2601.3,2601.2,2.21525703]
[1739156946887,7.68826,2601.4,2601.2,2.21525703]
[1739156947090,3.84408,2601.4,2601.2,2.21525703]
[1739156947560,3.84423,2601.3,2601.2,2.21525703]
[1739156948036,4.63292,2601.8,2601.2,2.21525703]
[1739156948236,3.84367,2601.7,2601.2,2.21525703]
[1739156948688,3.84367,2601.7,2601.6,2.21525703]
[1739156949792,3.84452,2601.1,2601.0,2.21525703]
[1739156950283,3.84452,2601.1,2600.7,2.21525703]
[1739156950488,3.84482,2600.9,2600.7,2.21525703]
[1739156950687,3.84452,2601.1,2600.7,2.21525703]
[1739156951044,3.84404,2601.5,2601.0,2.21525703]
[1739156951288,7.68807,2601.5,2601.3,2.21525703]
[1739156951794,3.84467,2601.1,2601.0,2.21525703]
[1739156952145,3.84416,2601.4,2601.0,2.21525703]
[1739156952578,3.8438,2601.6,2601.3,2.21525703]
[1739156953721,0.78523894,2601.8,2601.3,2.21525703]
[1739156953921,0.78523894,2601.8,2601.6,2.21525703]
[1739156954122,4.62873894,2601.8,2601.6,2.21525703]
[1739156954918,3.84364,2601.7,2601.6,2.21525703]
[1739156955218,3.84408,2601.4,2601.3,2.21525703]
[1739156955576,3.84388,2601.6,2601.3,2.21525703]
[1739156955775,3.84408,2601.4,2601.3,2.21525703]
[1739156956504,3.84465,2601.1,2601.0,2.21525703]
[1739156957004,3.84496,2600.9,2600.7,2.21525703]
[1739156957332,3.84458,2601.1,2600.7,2.21525703]
[1739156957483,3.84469,2601.0,2600.7,2.21525703]
[1739156957681,3.84484,2600.9,2600.7,2.21525703]
[1739156958212,3.84458,2601.1,2600.7,2.21525703]
[1739156958386,3.84458,2601.1,2601.0,2.21525703]
[1739156959014,3.84458,2601.1,2600.7,2.21525703]
[1739156959340,3.84489,2600.9,2600.7,2.21525703]
[1739156959480,3.84497,2600.8,2600.7,2.21525703]
[1739156960177,3.84489,2600.9,2600.7,2.21525703]
[1739156960433,3.84497,2600.8,2600.7,2.21525703]
[1739156960666,3.84489,2600.9,2600.7,2.21525703]
[1739156960828,0.75765098,2601.1,2600.7,2.21525703]
[1739156961032,4.60227098,2601.1,2601.0,2.21525703]
[1739156961666,3.84382,2601.6,2601.1,0.7924]
[1739156961826,3.84405,2601.5,2601.3,2.21525703]
[1739156962216,3.84408,2601.4,2601.3,2.21525703]
[1739156962422,3.84405,2601.5,2601.3,2.21525703]
[1739156962620,3.84408,2601.4,2601.3,2.21525703]
[1739156963023,3.84461,2601.1,2601.0,2.21525703]
[1739156963344,3.84461,2601.1,2600.7,2.21525703]
[1739156963648,3.84497,2600.8,2600.7,2.21525703]
[1739156964296,7.69071,2600.6,2600.4,2.21525703]
[1739156964470,3.84534,2600.6,2600.4,2.21525703]
[1739156966037,3.84505,2600.8,2600.4,2.21525703]
[1739156966237,3.84505,2600.8,2600.7,2.21525703]
[1739156966643,0.7671,2601.2,2600.4,2.21525703]
[1739156966846,3.84538,2600.6,2600.4,2.21525703]
[1739156967444,3.84541,2600.5,2600.4,2.21525703]
[1739156968103,3.84595,2600.2,2600.1,2.21525703]
[1739156968905,3.88935219,2600.2,2600.1,2.21525703]
[1739156969194,3.84618,2600.0,2599.8,2.21525703]
[1739156969756,0.04340219,2599.9,2599.8,2.21525703]
[1739156970196,7.69192,2600.2,2599.8,2.51602273]
[1739156970396,0.04340219,2599.9,2599.8,2.21525703]
[1739156970612,3.84601,2600.1,2599.8,2.21525703]
[1739156970761,0.04340219,2599.9,2599.8,2.21525703]
[1739156971268,6.84564,2600.4,2599.8,2.21525703]
[1739156971594,3.84541,2600.5,2600.3,2.21525703]
[1739156972116,4.62179847,2600.4,2600.3,2.21525703]
[1739156972458,0.77623847,2600.4,2600.3,2.21525703]
[1739156973299,3.8458,2600.3,2600.0,2.21525703]
[1739156974104,0.77623847,2600.4,2600.0,2.21525703]
[1739156974287,0.77623847,2600.4,2600.3,2.21525703]
[1739156976253,0.75221204,2600.9,2600.3,2.21525703]
[1739156976434,0.75221204,2600.9,2600.7,2.21525703]
[1739156977265,3.84498,2600.8,2600.7,2.21525703]
[1739156977465,3.8453,2600.6,2600.4,2.21525703]
[1739156978017,0.04315086,2600.5,2600.4,2.21525703]
[1739156979317,3.84505,2600.8,2600.4,2.21525703]
[1739156979518,0.0430642,2600.5,2600.4,2.21525703]
[1739156979742,3.84541,2600.5,2600.1,2.21525703]
[1739156979919,3.84585,2600.2,2600.1,2.21525703]
[1739156980450,3.88900952,2600.2,2600.1,2.21525703]
[1739156981821,3.88900952,2600.2,2599.8,2.21525703]
[1739156982124,7.69245,2600.0,2599.8,2.21525703]
[1739156982336,3.84619,2600.0,2599.8,2.21525703]
[1739156982624,3.8463,2599.9,2599.8,2.21525703]
[1739156982841,0.04276083,2599.9,2599.8,2.21525703]
[1739156985172,3.8461,2600.1,2599.8,2.21525703]
[1739156985458,0.04276083,2599.9,2599.8,2.21525703]
[1739156985631,3.88906083,2599.9,2599.8,2.21525703]
[1739156986650,0.04276083,2599.9,2599.8,2.21525703]
[1739156987557,3.0,2600.1,2599.8,2.21525703]
[1739156987725,0.04185051,2599.9,2599.8,2.21525703]
[1739156987925,3.84623,2600.0,2599.8,2.21525703]
[1739156988160,0.04196324,2599.9,2599.8,2.21525703]
[1739156988757,3.8463,2599.9,2599.8,2.21525703]
[1739156989270,3.88822855,2599.9,2599.8,2.21525703]
[1739156989643,3.88822855,2599.9,2599.8,1.73245846]
[1739156989834,3.84674,2599.6,2599.5,1.73245846]
[1739156990347,3.88866855,2599.6,2599.5,1.73245846]
[1739156991680,3.88866855,2599.6,2599.5,2.21796655]
[1739156993346,0.04192855,2599.6,2599.5,2.21796655]
[1739156993547,3.84662,2599.7,2599.5,2.21796655]
[1739156993733,3.88866855,2599.6,2599.5,2.21796655]
[1739156995043,3.8472,2599.3,2599.2,2.21796655]
[1739156995369,3.88880768,2599.3,2599.2,2.21796655]
[1739156996157,0.04160768,2599.3,2599.2,2.21796655]
[1739156996467,3.84718,2599.3,2599.2,2.21796655]
[1739156996686,0.04160768,2599.3,2599.2,2.21796655]
[1739156997170,0.78479705,2599.6,2599.2,2.21796655]
[1739156997345,0.78479705,2599.6,2599.5,2.21796655]
[1739156998130,3.84639,2599.9,2599.5,3.01636655]
[1739156998348,0.78780128,2600.0,2599.8,2.21796655]
[1739156998585,4.64436,2600.2,2599.8,2.21796655]
[1739156998789,3.84596,2600.2,2600.1,2.21796655]
[1739156999293,3.0,2600.2,2600.1,2.21796655]
[1739156999582,6.84585,2600.2,2600.1,2.21796655]
[1739156999983,0.77247201,2600.3,2600.1,2.21796655]
[1739157000139,0.77247201,2600.3,2600.1,3.01636655]
[1739157000470,3.84515,2600.7,2600.2,0.30163665]
[1739157000675,3.84487,2600.9,2600.5,2.21796655]
[1739157000870,7.68984,2600.9,2600.5,2.21796655]
[1739157001071,3.84512,2600.7,2600.5,2.21796655]
[1739157001484,4.61287047,2600.6,2600.5,2.21796655]
[1739157001684,3.84571,2600.3,2600.2,2.21796655]
[1739157002211,3.84567,2600.4,2600.2,2.21796655]
[1739157003821,5.41129047,2600.6,2600.2,2.21796655]
[1739157004328,3.84546,2600.5,2600.2,2.21796655]
[1739157004932,0.76761047,2600.6,2600.2,2.21796655]
[1739157005132,3.0,2600.9,2600.5,2.21796655]
[1739157005133,3.84483,2600.9,2600.5,2.21796655]
[1739157005336,3.84474,2601.0,2600.5,2.21796655]
[1739157005677,3.84495,2600.9,2600.5,2.21796655]
[1739157005838,3.7984,2601.1,2600.5,2.21796655]
[1739157006000,0.04140821,2600.8,2600.5,2.21796655]
[1739157006322,0.04140821,2600.7,2600.5,2.21796655]
[1739157006495,0.04140821,2600.7,2600.5,2.5196032]
[1739157006828,3.84383,2601.6,2600.9,3.84473]
[1739157007034,3.84393,2601.5,2601.3,2.21796655]
[1739157007337,3.8444,2601.2,2601.0,2.21796655]
[1739157007929,0.75444087,2601.4,2601.0,2.21796655]
[1739157008228,0.0435062,2601.1,2601.0,2.21796655]
[1739157008526,0.0435062,2601.1,2601.0,2.90249321]
[1739157009312,0.8232,2601.8,2601.0,2.90249321]
[1739157009313,0.8232,2601.8,2601.1,3.8445]
[1739157009518,6.8434,2601.9,2601.5,2.21796655]
[1739157009519,10.68687,2601.9,2601.5,2.21796655]
[1739157009704,4.6663,2602.1,2601.5,2.21796655]
[1739157009906,3.8432,2602.0,2601.5,2.21796655]
[1739157010197,3.84288,2602.3,2601.8,2.21796655]
[1739157010398,3.0,2602.1,2601.8,2.21796655]
[1739157010641,3.84279,2602.3,2601.8,2.21796655]
[1739157010929,0.78277705,2602.0,2601.8,2.21796655]
[1739157011434,3.84334,2601.9,2601.8,2.21796655]
[1739157011608,3.8437,2601.7,2601.5,2.21796655]
[1739157012013,3.84378,2601.6,2601.2,2.21796655]
[1739157012227,3.8441,2601.4,2601.2,2.21796655]
[1739157012431,3.84384,2601.6,2601.2,2.21796655]
[1739157012628,3.84423,2601.3,2601.2,2.21796655]
[1739157013184,3.84423,2601.3,2600.9,2.21796655]
[1739157013437,3.84433,2601.3,2600.9,2.21796655]
[1739157013744,3.84466,2601.1,2600.9,2.21796655]
[1739157013940,3.84467,2601.0,2600.9,2.21796655]
[1739157014142,3.84506,2600.8,2600.6,2.21796655]
[1739157014343,3.84511,2600.7,2600.6,2.21796655]
[1739157014714,3.88898874,2600.7,2600.6,2.21796655]
[1739157015244,0.04387874,2600.7,2600.6,2.21796655]
[1739157015397,3.88898874,2600.7,2600.6,2.21796655]
[1739157016213,0.04387874,2600.7,2600.6,2.21796655]
[1739157016414,0.04387874,2600.7,2600.6,3.2222632]
[1739157016845,3.84384,2601.6,2600.6,3.2222632]
[1739157017027,0.8232,2601.7,2601.3,2.21796655]
[1739157017205,3.84347,2601.9,2601.6,2.21796655]
[1739157017206,0.77567422,2601.9,2601.6,2.21796655]
[1739157017406,3.84364,2601.7,2601.3,2.21796655]
[1739157017638,3.84389,2601.6,2601.3,2.21796655]
[1739157017952,3.84364,2601.7,2601.3,2.21796655]
[1739157018253,3.84357,2601.8,2601.3,2.21796655]
[1739157018537,4.61901422,2601.9,2601.3,2.21796655]
[1739157018538,4.61905422,2601.9,2601.3,2.21796655]
[1739157018737,3.84408,2601.4,2601.3,2.21796655]
[1739157019625,3.84383,2601.6,2601.3,2.21796655]
[1739157020341,7.86271767,2602.0,2601.3,2.4397632]
[1739157020342,0.8232,2602.0,2601.3,2.4397632]
[1739157020555,3.84318,2602.1,2601.7,2.21796655]
[1739157020751,3.8432,2602.0,2601.7,2.21796655]
[1739157020953,0.78291128,2601.8,2601.7,2.21796655]
[1739157021114,3.84366,2601.7,2601.4,2.21796655]
[1739157021318,3.84393,2601.5,2601.4,2.21796655]
[1739157021519,3.84419,2601.4,2601.1,2.21796655]
[1739157021714,3.84393,2601.5,2601.1,2.21796655]
[1739157021931,3.84393,2601.5,2601.4,2.21796655]
[1739157022131,3.84431,2601.3,2601.1,2.21796655]
[1739157022660,3.88865576,2601.2,2601.1,2.21796655]
[1739157022841,3.88865576,2601.2,2600.5,3.0]
[1739157022842,3.84479,2601.0,2600.8,2.21796655]
[1739157023461,0.04428576,2600.9,2600.8,2.21796655]
[1739157024564,3.88910576,2600.9,2600.8,2.21796655]
[1739157024882,3.84571,2600.3,2600.2,2.21796655]
[1739157025077,3.84571,2600.3,2599.9,2.98176655]
[1739157025440,0.04428576,2600.2,2599.9,2.98176655]
[1739157025641,0.04428576,2600.2,2599.9,3.27994321]
[1739157025847,3.84545,2600.5,2599.9,3.27994321]
[1739157026049,3.84558,2600.4,2600.2,2.21796655]
[1739157026233,3.84527,2600.6,2600.2,2.21796655]
[1739157026427,3.84561,2600.4,2600.2,2.21796655]
[1739157026668,3.84571,2600.3,2599.9,2.98176655]
[1739157026867,3.84571,2600.3,2600.2,2.21796655]
[1739157027779,3.84615,2600.0,2599.9,2.21796655]
[1739157027977,3.84631,2599.9,2599.6,2.21796655]
[1739157028775,3.84659,2599.7,2599.6,2.21796655]
[1739157029079,3.847,2599.5,2599.3,2.21796655]
[1739157029580,3.84642,2599.9,2599.0,2.98176655]
[1739157029581,3.84732,2599.3,2599.0,2.98176655]
[1739157029781,0.04222335,2599.2,2599.0,2.98176655]
[1739157029986,3.84695,2599.5,2599.0,2.98176655]
[1739157030282,0.04194587,2599.4,2599.3,2.21796655]
[1739157030783,4.66136048,2599.4,2599.3,2.21796655]
[1739157030988,0.81432048,2599.4,2599.3,2.21796655]
[1739157031138,0.04194587,2599.4,2599.3,6.2869432]
[1739157031338,3.8459,2600.2,2599.3,7.0892083]
[1739157031579,6.88602989,2600.1,2599.9,2.21796655]
[1739157031779,3.84615,2600.0,2599.9,2.21796655]
[1739157032079,0.7599,2600.3,2599.9,2.21796655]
[1739157032240,3.84535,2600.6,2600.2,2.21796655]
[1739157032445,3.8455,2600.5,2600.2,2.21796655]
[1739157033355,4.62881535,2600.5,2600.2,2.21796655]
[1739157034336,3.84571,2600.3,2600.2,2.21796655]
[1739157034541,3.84556,2600.4,2599.9,2.21796655]
[1739157034783,3.84611,2600.1,2599.9,2.21796655]
[1739157035345,7.69223,2600.1,2599.9,2.21796655]
[1739157035559,3.84615,2600.0,2599.9,2.21796655]
[1739157036188,3.84631,2599.9,2599.6,2.21796655]
[1739157036343,7.69272,2599.9,2599.6,2.21796655]
[1739157036548,3.84645,2599.8,2599.6,2.21796655]
[1739157036880,3.84659,2599.7,2599.6,2.21796655]
[1739157037981,3.84631,2599.9,2599.6,2.21796655]
[1739157038344,4.59777,2600.1,2599.6,2.21796655]
[1739157038550,3.84607,2600.1,2599.6,2.21796655]
[1739157038857,3.84617,2600.0,2599.6,2.21796655]
[1739157039241,3.84659,2599.7,2599.6,2.21796655]
[1739157039466,3.84645,2599.8,2599.6,2.21796655]
[1739157039907,0.77746708,2600.0,2599.6,6.2865032]
[1739157040209,3.8459,2600.2,2599.9,2.21796655]
[1739157040717,7.5973,2600.4,2599.9,2.21796655]
[1739157040883,6.8456,2600.4,2599.9,3.04596655]
[1739157041082,0.78755805,2600.6,2600.2,2.21796655]
[1739157041286,4.6466,2601.0,2600.2,2.21796655]
[1739157041472,3.0,2600.8,2600.5,2.21796655]
[1739157041998,3.84484,2600.9,2600.5,2.21796655]
[1739157042596,0.8019,2601.0,2600.5,2.21796655]
[1739157042796,3.84505,2600.8,2600.2,2.21796655]
[1739157042982,0.78093344,2600.8,2600.5,6.89136655]
[1739157043183,3.84417,2601.4,2600.7,3.84498]
[1739157043386,0.08028404,2601.3,2601.0,2.21796655]
[1739157043768,3.08028404,2601.3,2601.0,2.21796655]
[1739157044174,3.84451,2601.2,2600.7,2.21796655]
[1739157044374,0.7836295,2601.1,2600.7,2.21796655]
[1739157044675,0.08028404,2601.0,2600.8,3.84496]
[1739157044874,0.08028404,2601.0,2600.9,2.21796655]
[1739157045385,0.08028404,2601.0,2600.9,6.06278655]
[1739157045573,3.84394,2601.5,2600.9,6.06278655]
[1739157045773,0.0827732,2601.4,2600.9,2.21796655]
[1739157046309,0.0827732,2601.4,2600.9,6.06275655]
[1739157046473,0.83589064,2601.4,2600.9,2.21796655]
[1739157046876,0.0827732,2601.4,2601.2,2.21796655]
[1739157047075,0.0827732,2601.4,2601.3,3.88267384]
[1739157047375,0.8019,2602.2,2601.7,3.84363]
[1739157047580,3.8429,2602.2,2601.8,2.21796655]
[1739157047810,3.0,2602.2,2601.8,2.21796655]
[1739157048116,6.84291,2602.2,2601.8,2.21796655]
[1739157048288,3.84307,2602.1,2601.8,2.21796655]
[1739157048687,0.78853652,2602.0,2601.8,2.21796655]
[1739157048992,3.84344,2601.9,2601.5,2.21796655]
[1739157049190,0.78853652,2602.0,2601.5,2.21796655]
[1739157049388,0.78853652,2602.0,2601.5,2.8241812]
[1739157049700,0.78853652,2602.0,2601.5,6.6680212]
[1739157050421,0.78853652,2602.0,2601.8,2.21796655]
[1739157050594,4.64442,2602.5,2601.9,3.84325]
[1739157050829,4.64442,2602.5,2602.1,2.21796655]
[1739157050990,3.84252,2602.5,2602.1,2.21796655]
[1739157051720,0.8019,2602.8,2602.1,2.21796655]
[1739157051721,0.77767981,2602.2,2602.1,2.21796655]
[1739157051880,0.77767981,2602.2,2601.8,3.04596655]
[1739157052074,0.77767981,2602.2,2601.8,6.88933655]
[1739157052395,0.757,2603.1,2602.4,0.7866]
[1739157052576,4.59514928,2602.9,2602.4,3.00456655]
[1739157052780,0.75317928,2602.9,2602.4,3.00456655]
[1739157053118,0.75317928,2602.9,2602.4,2.21796655]
[1739157053318,3.84225,2602.7,2602.1,3.00456655]
[1739157053482,3.84234,2602.6,2602.1,3.00456655]
[1739157053817,3.84225,2602.7,2602.2,3.8429]
[1739157054021,4.59508928,2602.9,2602.4,2.21796655]
[1739157054323,8.43705928,2602.9,2602.4,2.21796655]
[1739157054481,4.59508928,2602.9,2602.4,2.21796655]
[1739157054696,0.75317928,2602.9,2602.4,2.21796655]
[1739157054897,4.59506928,2602.9,2602.4,2.21796655]
[1739157055227,0.75317928,2602.9,2602.4,6.06042655]
[1739157056037,3.84205,2602.8,2602.4,2.21796655]
[1739157056332,4.59506928,2602.9,2602.4,2.21796655]
[1739157056543,4.59506928,2602.9,2602.4,6.06054655]
[1739157057522,8.43706928,2602.9,2602.4,2.21796655]
[1739157057725,3.8421,2602.8,2602.4,2.21796655]
[1739157057926,0.757,2601.8,2601.6,6.5]
[1739157058125,0.757,2601.8,2601.6,4.67910206]
[1739157058406,0.757,2602.1,2601.6,2.21796655]
[1739157058550,3.84291,2602.2,2601.9,2.21796655]
[1739157058884,4.71325523,2602.1,2601.6,3.00456655]
[1739157059153,4.71317523,2602.1,2601.6,3.00456655]
[1739157059353,4.71316523,2602.1,2601.6,3.00456655]
[1739157059726,3.8432,2602.0,2601.6,3.00456655]
[1739157059926,0.87011523,2602.1,2601.6,3.00456655]
[1739157060150,0.78519344,2602.1,2601.7,3.84349]
[1739157060316,0.08492179,2602.0,2601.7,3.84349]
[1739157060509,0.08492179,2602.0,2601.9,2.21796655]
[1739157061328,0.08492179,2602.0,2601.6,3.00456655]